bitfinex/quotes_BTCUSD_20240908
["timestamp","ask_amount","ask_price","bid_price","bid_amount"]
[1725810942669,0.39714,53847.0,53831.0,0.1854]
[1725810942670,0.1,53847.0,53834.0,0.1855005]
[1725810942881,0.1,53847.0,53835.0,0.00371456]
[1725810943114,0.148577,53844.0,53839.0,0.14859]
[1725810943348,0.14857,53847.0,53837.0,0.00371445]
[1725810943559,0.1,53858.0,53841.0,0.1854]
[1725810943780,0.297091,53856.0,53849.0,0.148563]
[1725810943991,0.000816,53859.0,53842.0,0.1521]
[1725810943992,0.02744964,53855.0,53850.0,0.1854]
[1725810944216,0.148545,53856.0,53850.0,0.1854]
[1725810944440,0.01715767,53854.0,53850.0,0.1854]
[1725810944664,0.14855,53854.0,53850.0,0.1854]
[1725810944902,0.01715767,53855.0,53850.0,0.1854]
[1725810945121,0.000816,53859.0,53854.0,0.1521]
[1725810945412,0.000816,53859.0,53855.0,0.333946]
[1725810945849,0.000816,53859.0,53855.0,0.333945]
[1725810946085,0.000816,53859.0,53858.0,0.148538]
[1725810946526,0.000816,53859.0,53855.0,0.333945]
[1725810946703,0.000816,53859.0,53858.0,0.631015]
[1725810946989,0.000816,53859.0,53858.0,0.928092]
[1725810947244,0.000816,53859.0,53858.0,0.631015]
[1725810948998,0.000816,53859.0,53858.0,0.333938]
[1725810949219,0.000816,53859.0,53858.0,0.631015]
[1725810949459,0.000816,53859.0,53858.0,0.74534593]
[1725810951807,0.000816,53859.0,53858.0,1.04242293]
[1725810952010,0.000816,53859.0,53858.0,1.33949993]
[1725810952428,0.000816,53859.0,53858.0,0.74534593]
[1725810952660,0.000816,53859.0,53858.0,1.04242293]
[1725810952898,0.000816,53859.0,53858.0,0.74534593]
[1725810953200,0.149351,53859.0,53858.0,0.1854]
[1725810953414,0.446422,53859.0,53858.0,0.1854]
[1725810953640,0.149351,53859.0,53858.0,0.1854]
[1725810953874,0.000816,53859.0,53858.0,0.1854]
[1725810954090,0.149351,53859.0,53858.0,0.1854]
[1725810954347,0.446422,53859.0,53858.0,0.1854]
[1725810954559,0.148541,53857.0,53856.0,0.1521]
[1725810954989,0.149353,53859.0,53856.0,0.1521]
[1725810955244,0.149353,53859.0,53856.0,0.16731]
[1725810955445,0.149353,53859.0,53856.0,0.315853]
[1725810955446,0.000816,53859.0,53856.0,0.315853]
[1725810955691,0.000816,53859.0,53856.0,0.16731]
[1725810955918,0.000816,53859.0,53858.0,0.148538]
[1725810956148,0.000816,53859.0,53858.0,0.4771998]
[1725810956352,0.000816,53859.0,53858.0,0.0315848]
[1725810956570,0.149354,53859.0,53856.0,0.1521]
[1725810956821,0.148541,53857.0,53856.0,0.1521]
[1725810957345,0.000816,53859.0,53856.0,0.1521]
[1725810957553,0.000816,53859.0,53857.0,0.2061]
[1725810957974,0.148538,53858.0,53857.0,0.2061]
[1725810958210,0.148538,53858.0,53844.0,0.3665]
[1725810958211,0.297077,53858.0,53844.0,0.3665]
[1725810958436,0.148542,53857.0,53851.0,0.148557]
[1725810958645,0.148552,53854.0,53849.0,0.148562]
[1725810958887,0.148552,53854.0,53845.0,0.08665]
[1725810958888,0.000816,53859.0,53850.0,0.29712]
[1725810959096,0.000816,53859.0,53845.0,0.64095836]
[1725810959097,0.000816,53859.0,53852.0,0.297108]
[1725810959318,0.149352,53859.0,53854.0,0.148547]
[1725810959544,0.148539,53858.0,53854.0,0.148547]
[1725810959761,0.000816,53859.0,53851.0,0.2061]
[1725810959996,0.01715735,53858.0,53851.0,0.2061]
[1725810960407,0.148555,53852.0,53851.0,0.2061]
[1725810960637,0.445665,53852.0,53851.0,0.2061]
[1725810960902,0.445665,53852.0,53837.0,0.55430836]
[1725810960903,0.148574,53845.0,53828.0,0.5]
[1725810961102,0.202,53854.0,53838.0,0.71470836]
[1725810961324,0.148589,53840.0,53838.0,0.3665]
[1725810961541,0.297182,53839.0,53833.0,0.2061]
[1725810961754,0.297177,53840.0,53834.0,0.0384452]
[1725810962182,0.148598,53837.0,53834.0,0.001632]
[1725810962396,0.148592,53839.0,53834.0,0.001632]
[1725810962630,0.148589,53840.0,53834.0,0.150234]
[1725810962867,0.148591,53839.0,53834.0,0.150234]
[1725810963100,0.297126,53850.0,53834.0,0.150234]
[1725810963101,0.000816,53859.0,53851.0,0.2061]
[1725810963310,0.000816,53859.0,53858.0,0.812115]
[1725810963729,0.000816,53859.0,53858.0,1.109192]
[1725810963983,0.000816,53859.0,53858.0,1.59125207]
[1725810964230,0.85124736,53883.0,53873.0,0.2061]
[1725810964231,0.29696,53880.0,53873.0,0.2061]
[1725810964456,0.04463001,53879.0,53873.0,0.2061]
[1725810964698,0.01716539,53878.0,53873.0,0.2061]
[1725810964935,0.01716512,53877.0,53874.0,0.0663506]
[1725810965175,0.01716512,53876.0,53875.0,0.445474]
[1725810965377,0.29693,53885.0,53874.0,0.0663506]
[1725810965601,0.01716629,53884.0,53874.0,0.0663506]
[1725810965842,0.16563729,53883.0,53876.0,0.148487]
[1725810966068,0.01716629,53882.0,53873.0,0.2061]
[1725810966347,0.296967,53878.0,53872.0,0.1604]
[1725810966533,0.01716552,53881.0,53872.0,0.1604]
[1725810966767,0.31412312,53880.0,53872.0,0.1604]
[1725810966994,0.148489,53876.0,53872.0,0.1604]
[1725810967222,0.148489,53876.0,53873.0,0.05111636]
[1725810967430,0.148492,53875.0,53872.0,0.15787716]
[1725810967643,0.148491,53876.0,53872.0,0.15787716]
[1725810967852,0.148492,53875.0,53872.0,0.15787716]
[1725810968456,0.29693,53885.0,53859.0,0.2061]
[1725810968457,0.202,53881.0,53859.0,0.2061]
[1725810968685,0.202,53881.0,53863.0,0.148522]
[1725810968686,0.148507,53870.0,53863.0,0.148522]
[1725810968917,0.148507,53870.0,53860.0,0.08910831]
[1725810968918,0.148507,53870.0,53864.0,0.148521]
[1725810969350,0.29696,53880.0,53865.0,0.2061]
[1725810969351,0.148492,53875.0,53865.0,0.2061]
[1725810969615,0.11717111,53874.0,53866.0,0.297029]
[1725810969836,0.248495,53874.0,53867.0,0.0503129]
[1725810970043,0.248495,53874.0,53869.0,0.148507]
[1725810970484,0.1,53874.0,53871.0,0.148501]
[1725810970691,0.1,53874.0,53868.0,0.1604]
[1725810970692,0.1,53876.0,53872.0,0.148498]
[1725810970944,0.29696,53880.0,53874.0,0.148492]
[1725810970945,0.148479,53880.0,53874.0,0.148492]
[1725810971201,0.296946,53882.0,53874.0,0.498985]
[1725810971202,0.1,53879.0,53874.0,0.498985]
[1725810971408,0.1,53879.0,53874.0,0.202]
[1725810971616,0.445524,53869.0,53867.0,0.202]
[1725810971860,0.297052,53863.0,53859.0,0.55430836]
[1725810972064,0.148536,53859.0,53856.0,0.202]
[1725810972303,0.148533,53860.0,53857.0,0.0198693]
[1725810972505,0.297035,53866.0,53857.0,0.0198693]
[1725810972710,0.1975,53875.0,53857.0,0.0198693]
[1725810972925,0.297048,53864.0,53857.0,0.0198693]
[1725810973341,0.14853,53862.0,53857.0,0.0198693]
[1725810973579,0.297048,53864.0,53857.0,0.0198693]
[1725810973580,0.000814,53860.0,53858.0,0.05250123]
[1725810973797,0.000814,53860.0,53857.0,0.0198693]
[1725810974036,0.148536,53859.0,53857.0,0.0198693]
[1725810974271,0.000814,53860.0,53857.0,0.0198693]
[1725810974506,0.148546,53856.0,53852.0,0.202]
[1725810974733,0.000814,53860.0,53852.0,0.202]
[1725810974734,0.297073,53859.0,53852.0,0.202]
[1725810974940,0.148556,53852.0,53848.0,0.20204]
[1725810975149,0.000814,53860.0,53848.0,0.20204]
[1725810975150,0.148543,53857.0,53848.0,0.20204]
[1725810975381,0.000814,53860.0,53848.0,0.350605]
[1725810975584,0.14856,53851.0,53849.0,0.0505205]
[1725810975786,0.023814,53860.0,53848.0,0.20204]
[1725810975787,0.148563,53849.0,53848.0,4e-05]
[1725810976263,0.148558,53851.0,53848.0,4e-05]
[1725810976489,0.297103,53854.0,53848.0,4e-05]
[1725810976490,0.148562,53850.0,53848.0,4e-05]
[1725810976740,0.22114648,53883.0,53875.0,0.85]
[1725810976932,0.01939806,53909.0,53888.0,0.945368]
[1725810976933,0.05460776,53893.0,53888.0,0.945368]
[1725810977179,0.55430836,53896.0,53888.0,0.945368]
[1725810977180,0.55430836,53896.0,53888.0,1.60848]
[1725810977361,0.148407,53906.0,53888.0,1.60848]
[1725810977593,0.149221,53908.0,53888.0,1.905392]
[1725810977821,0.00082,53908.0,53888.0,1.905392]
[1725810978244,0.148407,53906.0,53888.0,1.905392]
[1725810978447,0.296816,53906.0,53888.0,1.60848]
[1725810978639,0.148413,53904.0,53888.0,1.60848]
[1725810978854,0.149235,53903.0,53888.0,1.60848]
[1725810978975,0.149235,53903.0,53888.0,1.79346307]
[1725810979185,0.00082,53903.0,53888.0,1.79346307]
[1725810982072,0.149236,53903.0,53888.0,1.79346307]
[1725810982709,0.14842,53901.0,53888.0,1.79346307]
[1725810983141,0.149236,53903.0,53888.0,1.79346307]
[1725810983597,0.00082,53903.0,53888.0,1.79346307]
[1725810984027,0.149235,53903.0,53888.0,1.79346307]
[1725810984265,0.2045,53901.0,53888.0,1.60848]
[1725810984685,0.00082,53903.0,53888.0,1.60848]
[1725810984686,0.149235,53903.0,53888.0,1.60848]
[1725810984861,0.148417,53902.0,53888.0,1.60848]
[1725810986011,0.00082,53903.0,53888.0,0.3662]
[1725810986254,0.1544,53896.0,53884.0,0.148466]
[1725810986466,0.296883,53894.0,53883.0,0.2086]
[1725810986684,0.148464,53885.0,53884.0,0.02237787]
[1725810986902,0.148464,53885.0,53870.0,0.35]
[1725810986903,0.148473,53882.0,53876.0,0.148487]
[1725810987125,0.148473,53882.0,53875.0,0.71190836]
[1725810987354,0.148473,53882.0,53876.0,0.0663191]
[1725810987565,0.296913,53888.0,53878.0,0.148482]
[1725810987780,0.148458,53888.0,53881.0,0.148473]
[1725810988004,0.148459,53887.0,53882.0,0.0148473]
[1725810988216,0.148461,53886.0,53882.0,0.0148473]
[1725810988447,0.296888,53893.0,53885.0,0.148463]
[1725810988647,0.296888,53893.0,53882.0,0.0148473]
[1725810988648,0.148451,53890.0,53886.0,0.2086]
[1725810988863,0.14927,53889.0,53887.0,0.02086]
[1725810989071,0.148456,53888.0,53887.0,0.02086]
[1725810989294,0.000816,53889.0,53887.0,0.02086]
[1725810989534,0.149269,53889.0,53887.0,0.02086]
[1725810990371,0.000816,53889.0,53888.0,0.148456]
[1725810990636,0.000816,53889.0,53888.0,0.1862476]
[1725810990798,0.000816,53889.0,53888.0,0.6407596]
[1725810991509,0.000816,53889.0,53888.0,0.3438476]
[1725810992808,0.000816,53889.0,53888.0,0.6407596]
[1725810993238,0.000816,53889.0,53888.0,0.3438476]
[1725810993446,0.000816,53889.0,53888.0,0.6407596]
[1725810994083,0.000816,53889.0,53888.0,0.1862476]
[1725810994314,0.000816,53889.0,53888.0,0.0377916]
[1725810994542,0.000816,53889.0,53888.0,0.1862476]
[1725810994753,0.000816,53889.0,53888.0,0.9880716]
[1725810995844,0.000816,53889.0,53888.0,1.1459716]
[1725810996094,0.00082,53903.0,53902.0,1.155551]
[1725810996332,0.00082,53903.0,53902.0,1.7057016]
[1725810996544,0.00082,53903.0,53902.0,2.0025356]
[1725810996775,0.00082,53903.0,53902.0,2.1025356]
[1725810998090,0.35308836,53924.0,53909.0,0.5]
[1725810998314,0.1658,53931.0,53916.0,0.296756]
[1725810998315,0.148364,53922.0,53916.0,0.296756]
[1725810998542,0.148364,53922.0,53917.0,0.148375]
[1725810999204,0.148359,53924.0,53918.0,0.148373]
[1725810999426,0.1658,53931.0,53916.0,0.296756]
[1725810999658,0.296712,53925.0,53913.0,0.2103]
[1725810999865,0.148374,53918.0,53913.0,0.358686]
[1725811000104,0.148376,53917.0,53913.0,0.2103]
[1725811000318,0.296694,53928.0,53914.0,0.07646084]
[1725811000529,0.29671,53925.0,53913.0,0.2103]
[1725811000753,0.1,53927.0,53915.0,0.14838]
[1725811000754,0.296714,53924.0,53915.0,0.14838]
[1725811000980,0.296727,53922.0,53915.0,0.14838]
[1725811001196,0.148369,53920.0,53915.0,0.14838]
[1725811001441,0.296768,53914.0,53908.0,0.1553]
[1725811001637,0.148396,53910.0,53908.0,0.1553]
[1725811001892,0.3664,53922.0,53902.0,0.3656]
[1725811002130,0.3664,53922.0,53898.0,0.2103]
[1725811002131,0.066312,53921.0,53898.0,0.2103]
[1725811002365,0.148416,53903.0,53898.0,0.2103]
[1725811002599,0.148416,53903.0,53899.0,0.148425]
[1725811002805,0.148413,53904.0,53900.0,0.148422]
[1725811003039,0.148413,53904.0,53898.0,0.2103]
[1725811003040,0.296763,53915.0,53902.0,0.148416]
[1725811003264,0.296763,53915.0,53901.0,0.0358722]
[1725811003265,0.148408,53906.0,53901.0,0.0358722]
[1725811003702,0.148407,53906.0,53901.0,0.0358722]
[1725811004136,0.148409,53905.0,53901.0,0.0358722]
[1725811004361,0.148409,53905.0,53902.0,0.06914482]
[1725811004806,0.148413,53904.0,53902.0,0.06914482]
[1725811005499,0.148408,53906.0,53902.0,0.06914482]
[1725811005957,0.296801,53909.0,53902.0,0.06914482]
[1725811006179,0.148406,53906.0,53902.0,0.06914482]
[1725811006373,0.148401,53908.0,53903.0,0.17016948]
[1725811006612,0.296792,53910.0,53904.0,0.148411]
[1725811006880,0.148398,53909.0,53904.0,0.148411]
[1725811007300,0.148403,53907.0,53903.0,0.17017048]
[1725811007566,0.1484,53909.0,53904.0,0.05361523]
[1725811007801,0.148396,53910.0,53904.0,0.49884523]
[1725811008024,0.148396,53910.0,53905.0,0.148408]
[1725811008468,0.4664,53922.0,53904.0,0.05361523]
[1725811008678,0.148399,53909.0,53904.0,0.148411]
[1725811009114,0.35308836,53932.0,53927.0,0.148348]
[1725811009323,0.10955454,53939.0,53929.0,0.2103]
[1725811009324,0.00081,53939.0,53929.0,0.2103]
[1725811009543,0.00081,53939.0,53930.0,0.02140082]
[1725811009751,0.148336,53932.0,53930.0,0.02140082]
[1725811009967,0.148328,53935.0,53930.0,0.02140082]
[1725811010180,0.00081,53939.0,53930.0,0.02140082]
[1725811010374,0.14833,53934.0,53931.0,0.00370807]
[1725811010655,0.14833,53934.0,53930.0,0.02140082]
[1725811010656,0.148328,53935.0,53932.0,0.03837509]
[1725811010877,0.00081,53939.0,53932.0,0.03837509]
[1725811011081,0.148326,53936.0,53930.0,0.17344792]
[1725811011289,0.148327,53935.0,53930.0,0.17344792]
[1725811011502,0.296642,53937.0,53930.0,0.17344792]
[1725811011783,0.14832,53938.0,53931.0,0.148337]
[1725811011996,0.148329,53934.0,53930.0,0.02140082]
[1725811012198,0.148329,53934.0,53931.0,0.04400069]
[1725811012427,0.148332,53933.0,53931.0,0.04400069]
[1725811012649,0.1,53937.0,53923.0,0.2113]
[1725811012650,0.1922,53936.0,53923.0,0.2113]
[1725811012900,0.148348,53927.0,53923.0,0.2113]
[1725811013103,0.148352,53926.0,53923.0,0.2113]
[1725811013321,0.148348,53927.0,53923.0,0.2113]
[1725811013747,0.148351,53926.0,53923.0,0.2113]
[1725811013930,0.148349,53927.0,53924.0,0.03766]
[1725811014273,0.148346,53928.0,53924.0,0.03766]
[1725811014482,0.148353,53926.0,53924.0,0.03766]
[1725811014710,0.296691,53929.0,53924.0,0.03766]
[1725811014961,0.1922,53936.0,53925.0,0.0562621]
[1725811015143,0.296667,53933.0,53925.0,0.148351]
[1725811015383,0.1922,53936.0,53923.0,0.2113]
[1725811015599,0.148348,53928.0,53923.0,0.2113]
[1725811015819,0.148353,53926.0,53923.0,0.2113]
[1725811016026,0.148353,53926.0,53923.0,0.24896]
[1725811016675,0.296659,53934.0,53923.0,0.24896]
[1725811016676,0.148349,53927.0,53923.0,0.24896]
[1725811016888,0.148367,53921.0,53919.0,0.1993]
[1725811017104,0.1543,53931.0,53916.0,0.1587]
[1725811017323,0.14837,53919.0,53915.0,0.1993]
[1725811017563,0.148378,53916.0,53915.0,0.1993]
[1725811017780,0.296725,53922.0,53911.0,0.1993]
[1725811018053,0.296725,53922.0,53903.0,0.001626]
[1725811018054,0.2095,53924.0,53907.0,0.1993]
[1725811018265,0.1484,53908.0,53907.0,0.1993]
[1725811018473,0.296777,53913.0,53907.0,0.1993]
[1725811018687,0.296747,53918.0,53907.0,0.1993]
[1725811019061,0.14839,53912.0,53907.0,0.1993]
[1725811019277,0.148395,53910.0,53907.0,0.1993]
[1725811019468,0.148395,53910.0,53908.0,0.02725422]
[1725811019874,0.148392,53911.0,53908.0,0.02725422]
[1725811020096,0.296774,53913.0,53908.0,0.02725422]
[1725811020321,0.148394,53911.0,53908.0,0.02725422]
[1725811021123,0.296742,53919.0,53908.0,0.02725422]
[1725811021349,0.148394,53911.0,53907.0,0.1993]
[1725811021559,0.296746,53918.0,53907.0,0.1993]
[1725811021848,0.1484,53908.0,53907.0,0.1993]
[1725811021984,0.296786,53911.0,53907.0,0.1993]
[1725811022211,0.148388,53913.0,53907.0,0.1993]
[1725811022430,0.296796,53909.0,53907.0,0.1993]
[1725811022657,0.1484,53908.0,53907.0,0.1993]
[1725811023124,0.296776,53913.0,53907.0,0.1993]
[1725811023363,0.14921,53910.0,53907.0,0.1993]
[1725811023641,0.13655445,53936.0,53935.0,0.01]
[1725811023877,0.01939806,53971.0,53960.0,0.148257]
[1725811024121,0.155114,53976.0,53958.0,0.296526]
[1725811024389,0.155114,53976.0,53957.0,0.3546]
[1725811024390,0.592895,53973.0,53957.0,0.3546]
[1725811024594,0.149056,53968.0,53958.0,0.148262]
[1725811024805,0.00082,53968.0,53957.0,0.3546]
[1725811025023,0.14824,53967.0,53957.0,0.502865]
[1725811025238,0.00082,53968.0,53957.0,0.3546]
[1725811025478,0.00082,53968.0,53959.0,0.148259]
[1725811025699,0.149056,53968.0,53959.0,0.148259]
[1725811025926,0.149056,53968.0,53957.0,0.3546]
[1725811025927,0.00082,53968.0,53957.0,0.3546]
[1725811026153,0.148242,53966.0,53957.0,0.502864]
[1725811026364,0.00082,53968.0,53959.0,0.148259]
[1725811026365,0.149056,53968.0,53959.0,0.148259]
[1725811026782,0.149056,53968.0,53957.0,0.3546]
[1725811026783,0.149057,53968.0,53957.0,0.3546]
[1725811027227,0.149057,53968.0,53960.0,0.148257]
[1725811027449,0.00082,53968.0,53960.0,0.148257]
[1725811028350,0.149056,53968.0,53960.0,0.148257]
[1725811028767,0.00082,53968.0,53960.0,0.148257]
[1725811029202,0.00082,53968.0,53960.0,0.44847796]
[1725811029435,0.00082,53968.0,53960.0,0.74499296]
[1725811031143,0.00082,53968.0,53960.0,1.04150796]
[1725811032007,0.00082,53968.0,53960.0,0.741287]
[1725811032197,0.00082,53968.0,53960.0,0.56383759]
[1725811032415,0.00082,53968.0,53958.0,0.3912949]
[1725811032631,0.148242,53966.0,53960.0,0.148257]
[1725811032849,0.297296,53968.0,53959.0,0.148258]
[1725811033062,0.297296,53968.0,53960.0,0.148257]
[1725811033063,0.148244,53965.0,53960.0,0.148257]
[1725811033291,0.14824,53967.0,53960.0,0.148257]
[1725811033528,0.00082,53968.0,53960.0,0.444772]
[1725811033740,0.149057,53968.0,53960.0,0.54830829]
[1725811034165,0.149057,53964.0,53959.0,0.148259]
[1725811034583,0.00081,53964.0,53960.0,0.148257]
[1725811035048,0.00081,53964.0,53960.0,0.444772]
[1725811035261,0.00081,53964.0,53960.0,0.44847797]
[1725811035710,0.16691,53961.0,53955.0,0.796541]
[1725811035939,0.00081,53961.0,53957.0,0.29653]
[1725811036167,0.00081,53961.0,53958.0,0.148262]
[1725811036378,0.00081,53961.0,53959.0,0.148259]
[1725811036608,0.00081,53961.0,53956.0,0.296533]
[1725811036818,0.00081,53961.0,53958.0,0.148262]
[1725811037521,0.00081,53961.0,53959.0,0.148258]
[1725811037745,0.00081,53961.0,53960.0,0.148257]
[1725811037966,0.00081,53961.0,53959.0,0.148259]
[1725811038195,0.00081,53961.0,53957.0,0.148265]
[1725811038410,0.00081,53961.0,53957.0,0.05041134]
[1725811038627,0.00081,53961.0,53959.0,0.148259]
[1725811038838,0.00081,53961.0,53957.0,0.19867534]
[1725811039057,0.00081,53961.0,53958.0,0.148262]
[1725811039931,0.00081,53961.0,53959.0,0.14826]
[1725811040176,0.00081,53961.0,53959.0,0.22743553]
[1725811040600,0.00081,53961.0,53960.0,0.148257]
[1725811041524,0.00081,53961.0,53960.0,0.444772]
[1725811041741,0.00081,53961.0,53960.0,0.148257]
[1725811043093,0.00081,53961.0,53959.0,0.07917553]
[1725811043305,0.00081,53961.0,53959.0,0.148259]
[1725811044241,0.00081,53961.0,53954.0,0.148273]
[1725811044466,0.00081,53961.0,53956.0,0.148267]
[1725811044467,0.149066,53961.0,53956.0,0.148267]
[1725811044678,0.148261,53959.0,53955.0,0.148271]
[1725811044898,0.148261,53959.0,53955.0,0.1927533]
[1725811045106,0.00081,53961.0,53955.0,0.1927533]
[1725811045107,0.149067,53961.0,53955.0,0.1927533]
[1725811045340,0.149067,53961.0,53955.0,0.296541]
[1725811045763,0.149067,53961.0,53957.0,0.148266]
[1725811046180,0.296517,53960.0,53949.0,0.296571]
[1725811046402,0.00081,53961.0,53949.0,0.296574]
[1725811046612,0.00081,53961.0,53951.0,0.2480294]
[1725811046841,0.148267,53957.0,53951.0,0.296564]
[1725811047067,0.296529,53958.0,53951.0,0.14828]
[1725811047283,0.296529,53958.0,53953.0,0.148277]
[1725811047529,0.00081,53961.0,53947.0,0.296584]
[1725811047762,0.148275,53954.0,53950.0,0.349184]
[1725811047965,0.148275,53954.0,53951.0,0.0645768]
[1725811048175,0.148275,53954.0,53950.0,0.349184]
[1725811048386,0.148272,53955.0,53951.0,0.148281]
[1725811048590,0.148272,53955.0,53950.0,0.349184]
[1725811049689,0.296543,53955.0,53950.0,0.2009]
[1725811049903,0.296538,53956.0,53950.0,0.4137604]
[1725811050118,0.148275,53954.0,53950.0,0.349183]
[1725811050797,0.444799,53957.0,53950.0,0.497468]
[1725811051033,0.148262,53959.0,53954.0,0.148273]
[1725811051293,0.296518,53960.0,53951.0,0.296561]
[1725811051518,0.444785,53959.0,53952.0,0.296558]
[1725811051743,0.148264,53958.0,53954.0,0.148273]
[1725811052623,0.00081,53961.0,53955.0,0.14827]
[1725811052624,0.148261,53959.0,53955.0,0.14827]
[1725811052838,0.149065,53961.0,53956.0,0.0444821]
[1725811053043,0.148266,53957.0,53956.0,0.0444821]
[1725811053253,0.00081,53961.0,53951.0,0.3759675]
[1725811053466,0.14826,53959.0,53955.0,0.14827]
[1725811054572,0.1975,53960.0,53946.0,0.1973]
[1725811054855,0.00081,53961.0,53924.0,0.5]
[1725811054856,0.296589,53947.0,53924.0,0.5]
[1725811055094,0.296589,53947.0,53936.0,0.55430836]
[1725811055095,0.148321,53937.0,53936.0,0.55430836]
[1725811055342,0.1975,53938.0,53923.0,0.1586]
[1725811055575,0.296644,53937.0,53924.0,0.07131316]
[1725811055807,0.1975,53938.0,53924.0,0.07131316]
[1725811055808,0.296675,53931.0,53924.0,0.07131316]
[1725811056043,0.155,53933.0,53923.0,0.1586]
[1725811056271,0.155,53933.0,53922.0,0.148361]
[1725811056272,0.148346,53928.0,53922.0,0.148361]
[1725811056551,0.155,53933.0,53920.0,0.00022326]
[1725811056798,0.148362,53922.0,53920.0,0.00022326]
[1725811057024,0.445095,53921.0,53920.0,0.00022326]
[1725811057486,0.148365,53921.0,53920.0,0.00022326]
[1725811058447,0.445095,53921.0,53920.0,0.00022326]
[1725811058926,0.148365,53921.0,53920.0,0.00022326]
[1725811059160,0.445095,53921.0,53920.0,0.00022326]
[1725811059369,0.741825,53921.0,53920.0,0.00022326]
[1725811061091,0.741825,53921.0,53920.0,0.00184926]
[1725811062125,0.8160075,53921.0,53920.0,0.00184926]
[1725811062364,1.2692375,53921.0,53920.0,0.00184926]
[1725811063741,1.195055,53921.0,53920.0,0.00184926]
[1725811063952,0.898325,53921.0,53920.0,0.00184926]
[1725811064388,0.741825,53921.0,53920.0,0.00184926]
[1725811065029,0.741825,53921.0,53920.0,0.001626]
[1725811068581,0.296666,53933.0,53920.0,0.001626]
[1725811068582,0.148322,53937.0,53930.0,0.148337]
[1725811068825,0.54908836,53950.0,53932.0,0.1568]
[1725811068826,0.196,53950.0,53932.0,0.1568]
[1725811069077,0.148322,53937.0,53932.0,0.1568]
[1725811069481,0.196,53950.0,53932.0,0.1568]
[1725811069717,0.296619,53942.0,53932.0,0.305134]
[1725811069939,0.196,53950.0,53933.0,0.14833]
[1725811070168,0.296626,53940.0,53933.0,0.148331]
[1725811070386,0.148317,53939.0,53933.0,0.148331]
[1725811070620,0.1,53941.0,53933.0,0.148331]
[1725811070814,0.296613,53943.0,53937.0,0.14832]
[1725811070815,0.1,53942.0,53937.0,0.14832]
[1725811071061,0.1,53942.0,53932.0,0.1568]
[1725811071062,0.1,53942.0,53939.0,0.148315]
[1725811071268,0.248304,53943.0,53937.0,0.148319]
[1725811071978,0.09977688,53943.0,53933.0,0.296661]
[1725811072183,0.148307,53942.0,53937.0,0.14832]
[1725811072636,0.148302,53944.0,53939.0,0.148315]
[1725811072899,0.296601,53945.0,53938.0,0.148316]
[1725811072900,0.148305,53943.0,53938.0,0.148316]
[1725811073095,0.444902,53945.0,53939.0,0.340515]
[1725811073323,0.148302,53944.0,53939.0,0.340515]
[1725811073541,0.148302,53944.0,53939.0,0.4042311]
[1725811074018,0.1,53943.0,53939.0,0.4042311]
[1725811074248,0.248304,53943.0,53939.0,0.4042311]
[1725811075380,0.1,53943.0,53939.0,0.4042311]
[1725811076246,0.148307,53942.0,53939.0,0.2559161]
[1725811076462,0.148311,53941.0,53939.0,0.1922]
[1725811076898,0.100813,53943.0,53928.0,0.2038]
[1725811076899,0.168,53942.0,53928.0,0.2038]
[1725811077126,0.168,53942.0,53925.0,0.2038]
[1725811077127,0.1913,53940.0,53925.0,0.2038]
[1725811077347,0.148342,53930.0,53920.0,0.75973436]
[1725811077583,0.148364,53922.0,53920.0,0.001626]
[1725811077802,0.148357,53924.0,53920.0,0.001626]
[1725811078042,0.148355,53925.0,53921.0,0.148364]
[1725811078280,0.148352,53926.0,53922.0,0.14836]
[1725811078509,0.148352,53926.0,53921.0,0.148364]
[1725811078752,0.148348,53927.0,53921.0,0.296728]
[1725811078963,0.168,53932.0,53921.0,0.296728]
[1725811078964,0.148354,53925.0,53921.0,0.148363]
[1725811079185,0.148354,53925.0,53921.0,0.2134162]
[1725811079418,0.148348,53927.0,53922.0,0.148361]
[1725811079653,0.148357,53924.0,53920.0,0.149992]
[1725811080081,0.168,53932.0,53920.0,0.149992]
[1725811080082,0.296682,53930.0,53921.0,0.2134175]
[1725811080304,0.168,53932.0,53921.0,0.148364]
[1725811080515,0.148353,53926.0,53921.0,0.148364]
[1725811080739,0.148341,53930.0,53925.0,0.148352]
[1725811080956,0.296681,53930.0,53923.0,0.148358]
[1725811081185,0.296687,53929.0,53920.0,0.001626]
[1725811081395,0.296697,53927.0,53920.0,0.001626]
[1725811081635,0.148353,53926.0,53920.0,0.149993]
[1725811081924,0.148355,53925.0,53920.0,0.001626]
[1725811082383,0.148357,53924.0,53920.0,0.001626]
[1725811082583,0.296704,53926.0,53920.0,0.149992]
[1725811082584,0.148356,53925.0,53920.0,0.149992]
[1725811083036,0.148357,53924.0,53920.0,0.001626]
[1725811083302,0.296691,53929.0,53922.0,0.14836]
[1725811083535,0.148341,53930.0,53925.0,0.148353]
[1725811083776,0.29665,53936.0,53928.0,0.148343]
[1725811084005,0.296667,53933.0,53927.0,0.2038]
[1725811084219,0.148338,53931.0,53927.0,0.2038]
[1725811084454,0.148335,53932.0,53927.0,0.352147]
[1725811084898,0.29666,53934.0,53928.0,0.148345]
[1725811085111,0.248333,53933.0,53928.0,0.148345]
[1725811085560,0.148335,53932.0,53927.0,0.2038]
[1725811085799,0.1,53933.0,53927.0,0.2038]
[1725811086018,0.148339,53931.0,53927.0,0.2038]
[1725811086435,0.14834,53930.0,53927.0,0.2038]
[1725811086655,0.296671,53932.0,53927.0,0.268686]
[1725811086899,0.148365,53921.0,53920.0,0.001626]
[1725811087120,0.445095,53921.0,53920.0,0.001626]